Cogmind - Beta 10.2 *** ADVENTURER MODE // 2021.05.17 @ 20:22:36 Player: Attayla Result: Self-destructed Performance ------------- Evolutions (1) 500 Regions Visited (3) 600 Robots Destroyed (18) 90 Value Destroyed (624) 624 Prototype IDs (1) 20 Alien Tech Used (0) 0 Bonus (0) 0 TOTAL SCORE: 1834 Bonus ------- None Cogmind --------- Core Integrity 299/400 Matter 300/300 Energy 100/100 System Corruption 1% Temperature Cool (0) Movement Core (300) Ox5 Location -9/Mines Parts ------- > --- POWER (1) -------- (None) > --- PROPULSION (2) --- (None) > --- UTILITY (3) ------ Medium Storage Unit Core Shielding > --- WEAPON (3) ------- Great Maul Great Maul > --- INVENTORY (8) ---- Improved Utility Shielding Light Cannon Light Cannon Light Cannon Improved Light Cannon Grenade Launcher Rocket Launcher Great Maul Peak State ------------ > --- POWER ------------ Light Nuclear Core > --- PROPULSION ------- Improved Treads Wheel > --- UTILITY ---------- Medium Storage Unit Core Shielding Medium Armor Plating > --- WEAPON ----------- Great Maul Great Maul Great Maul > --- INVENTORY -------- Light Treads Wheel Improved Utility Shielding Light Cannon Light Cannon Light Cannon Improved Light Cannon Great Maul [Rating: 20] Favorites ----------- Power Light Nuclear Core Engine Light Ion Engine Power Core Light Nuclear Core Propulsion Wheel Treads Improved Treads Wheel Wheel Utility Core Shielding Storage Medium Storage Unit Protection Core Shielding Weapon Great Maul Energy Gun Medium Laser Ballistic Gun Improved Assault Rifle Ballistic Cannon Light Cannon Impact Weapon Great Maul Build | -11 -10 -9 -9 ------- Run | Scr Mat Mat Min Slots Evolved 2 | . . 2 . Power . | . . . . Propulsion . | . . . . Utility 1 | . . 1 . Weapon 1 | . . 1 . Parts Attached 26 | 5 9 12 . Power 3 | 1 2 . . Engine 1 | 1 . . . Core 2 | . 2 . . Reactor . | . . . . Propulsion 6 | 2 . 4 . Treads 3 | . . 3 . Leg . | . . . . Wheel 3 | 2 . 1 . Hover . | . . . . Flight . | . . . . Utility 5 | . 4 1 . Device . | . . . . Storage 2 | . 2 . . Processor . | . . . . Hackware . | . . . . Protection 3 | . 2 1 . Artifact . | . . . . Weapon 12 | 2 3 7 . Energy Gun 5 | 2 3 . . Energy Cannon . | . . . . Ballistic Gun 1 | . . 1 . Ballistic Cannon 3 | . . 3 . Launcher . | . . . . Special Weapon . | . . . . Impact Weapon 3 | . . 3 . Slashing Weapon . | . . . . Piercing Weapon . | . . . . Special Melee Weapon . | . . . . Unidentified Prototypes 1 | . . 1 . Parts Lost 3 | . 1 . 2 Power 1 | . . . 1 Propulsion . | . . . . Utility 1 | . . . 1 Weapon 1 | . 1 . . Highest Loss Streak 2 | . 1 . 2 Average Slot Usage (%) 96 | . 96 96 96 Engine 2 | . 5 . . Core 9 | . 7 11 10 Treads 6 | . . 2 20 Wheel 17 | . 28 19 . Storage 9 | . 6 11 11 Protection 20 | . 19 20 20 Energy Gun 12 | . 28 7 . Ballistic Cannon 6 | . . 17 . Impact Weapon 10 | . . 6 31 Naked Turns . | . . . . Heaviest Build 33 | 6 17 33 33 Greatest Support 43 | 20 20 43 43 Greatest Overweight (x) 3 | . . 3 . Average Overweight (x) . | . . . . Largest Inventory Capacity 8 | 4 8 8 8 Average Capacity 7 | 4 5 8 8 Most Carried 8 | 2 6 8 8 Average Carried 4 | . 2 4 7 Final Capacity 8 | 4 8 8 8 Final Carried 8 | 2 1 8 8 Class Distribution -------------------- 75% | Mutant 24% | Tank Dominant Class ---------------- Mutant | -10/Materials Tank | -9/Materials Mutant | -9/Mines Resources | -11 -10 -9 -9 ----------- Run | Scr Mat Mat Min Matter Collected 639 | 250 65 237 87 Remotely . | . . . . Salvage Created 774 | 38 245 354 137 Parts 38 | 3 12 21 2 Haulers Intercepted . | . . . . Recyclers Shooed . | . . . . Parts Field Recycled . | . . . . Retrieved Matter . | . . . . Parts Self-Destructed . | . . . . Prevented . | . . . . Kills | -11 -10 -9 -9 ------- Run | Scr Mat Mat Min Combat Hostiles Destroyed 14 | 1 5 5 3 Melee 1 | . . . 1 Guns 6 | 1 5 . . Cannons 5 | . . 5 . Classes Destroyed 4 | 1 . 3 . Recycler 1 | . . 1 . Watcher 3 | . . 3 . Grunt 12 | 1 5 3 3 Sentry 2 | . . 2 . Best Kill Streak 5 | 1 2 5 3 Combat Bots Only 3 | 1 2 3 3 Max Kills in Single Turn 2 | 1 1 2 1 Gunslinging . | . . . . Exploded . | . . . . Melee 1 | . . . 1 Uniques/NPCs Destroyed . | . . . . Combat | -11 -10 -9 -9 -------- Run | Scr Mat Mat Min Damage Taken 885 | . 168 103 614 Core 108 | . 7 17 84 Absorbed by Shields . | . . . . Core Remaining (%) 98 | 100 97 . . Volleys Fired 36 | 1 19 16 . Largest 3 | 2 2 3 . Hottest 109 | 90 90 109 . Shots Fired 82 | 2 34 46 . Gun 36 | 2 34 . . Cannon 46 | . . 46 . Launcher . | . . . . Special . | . . . . Kinetic 46 | . . 46 . Thermal 36 | 2 34 . . Explosive . | . . . . Electromagnetic . | . . . . Robot Hit Streak 8 | 2 8 6 . Robot Miss Streak 6 | . 3 6 . Penetration Max . | . . . . Secondary Targets 1 | . 1 . . Max Gunslinging Chain 1 | . 1 . . Shots Hit Robots 50 | 2 20 15 13 Core Hits 29 | 2 12 11 4 Critical Hits 1 | . . 1 . Critical Kills 1 | . . 1 . Critical Parts Destroyed . | . . . . Melee Attacks 18 | . . . 18 Impact 18 | . . . 18 Slashing . | . . . . Piercing . | . . . . Sneak Attacks . | . . . . Combat Hostiles . | . . . . Follow-up Attacks 7 | . . . 7 Damage Inflicted 987 | 23 234 307 423 Guns 257 | 23 234 . . Cannons 307 | . . 307 . Explosions . | . . . . Melee 398 | . . . 398 Ramming 25 | . . . 25 Kinetic 307 | . . 307 . Thermal 257 | 23 234 . . Explosive . | . . . . Electromagnetic . | . . . . Impact 398 | . . . 398 Slashing . | . . . . Piercing . | . . . . Highest Corruption 1 | . . 1 1 Average Corruption 1 | . . 1 1 Corruption Purged . | . . . . Effects 1 | . . . 1 Targeting Errors 1 | . . . 1 Overload Shots . | . . . . Overflow Damage 65 | . . . 65 Projectiles . | . . . . Explosions . | . . . . Melee 65 | . . . 65 Knockbacks 1 | . . . 1 Impact 1 | . . . 1 Kinetic . | . . . . Secondary . | . . . . Self-Inflicted Damage . | . . . . Shots . | . . . . Rammed 10 | . . . 10 Targets Rammed 10 | . . . 10 Kicked . | . . . . Crushed . | . . . . Highest Temperature 447 | 30 190 447 . Average Temperature 115 | 17 71 159 . Received Heat Transfer 423 | . 96 69 258 Effects 1 | . . 1 . Energy Bleed 1 | . . 1 . Siege Activations . | . . . . Robots Corrupted . | . . . . Combat Hostiles . | . . . . Parts Fried 3 | . . . 3 Impact Corruptions 4 | . . . 4 Robots Melted . | . . . . Combat Hostiles . | . . . . Parts Melted 3 | 1 2 . . Heat Transferred 693 | 62 631 . . Parts Sabotaged . | . . . . Parts Stolen . | . . . . Parts Stripped . | . . . . Power Chain Reactions . | . . . . Missiles Intercepted . | . . . . Alert | -11 -10 -9 -9 ------- Run | Scr Mat Mat Min Peak Influence 239 | 20 166 239 82 Initial 12 | . 11 5 12 Average 75 | 3 71 114 41 Maximum Alert Level 1 | . . 1 . Low Security (%) 88 | 100 100 68 100 Level 1 11 | . . 31 . Level 2 . | . . . . Level 3 . | . . . . Level 4 . | . . . . Level 5 . | . . . . High Security . | . . . . Max Security . | . . . . Squads Dispatched 1 | . 1 . . Investigation 1 | . 1 . . Extermination . | . . . . Reinforcement . | . . . . Assault . | . . . . Garrison . | . . . . Intercept . | . . . . Construction Impeded . | . . . . Haulers Reinforced . | . . . . Stealth | -11 -10 -9 -9 --------- Run | Scr Mat Mat Min Distress Signals 1 | . . 1 . Communications Jammed . | . . . . Distress Signals . | . . . . Times Spotted 27 | 1 8 8 10 Peak Tracking Total 7 | 1 3 4 7 Tactical Retreats 2 | . 1 . 1 Traps | -11 -10 -9 -9 ------- Run | Scr Mat Mat Min Traps Triggered 4 | . 2 2 . Indirectly . | . . . . Trap Hack Attempts . | . . . . Triggered . | . . . . Disarmed . | . . . . Reprogrammed . | . . . . Reused . | . . . . Traps Extracted . | . . . . Installed . | . . . . Triggered . | . . . . Machines | -11 -10 -9 -9 ---------- Run | Scr Mat Mat Min Machines Disabled 2 | . . 2 . Max in Single Turn 1 | . . 1 . Machines Sabotaged . | . . . . Garrisons Compromised . | . . . . Overloaded Fab Kills . | . . . . Fab Network Shutdowns . | . . . . Hacking | -11 -10 -9 -9 --------- Run | Scr Mat Mat Min Machines Accessed 2 | . 1 1 . Terminals . | . . . . Fabricators . | . . . . Repair Stations 1 | . 1 . . Recycling Units . | . . . . Scanalyzers 1 | . . 1 . Garrison Access . | . . . . Total Hacks 6 | . 4 2 . Successful 5 | . 3 2 . Failed 1 | . 1 . . Catastrophic . | . . . . Database Lockouts . | . . . . Manual . | . . . . Terminals . | . . . . Fabricators . | . . . . Repair Stations 4 | . 4 . . Recycling Units . | . . . . Scanalyzers 2 | . . 2 . Garrison Access . | . . . . Terminal Hacks . | . . . . Fabricator Hacks . | . . . . Repair Station Hacks 3 | . 3 . . Scan Component 2 | . 2 . . Repair 1 | . 1 . . Recycling Unit Hacks . | . . . . Scanalyzer 2 | . . 2 . Insert Component 1 | . . 1 . Analyze 1 | . . 1 . Garrison Access Hacks . | . . . . Unauthorized Hacks . | . . . . Terminals . | . . . . Fabricators . | . . . . Repair Stations . | . . . . Recycling Units . | . . . . Scanalyzers . | . . . . Garrison Access . | . . . . Data Cores Recovered . | . . . . Used . | . . . . Hacking Detections 2 | . 1 1 . Full Trace Events 1 | . 1 . . Feedback Events . | . . . . Feedback Blocked . | . . . . Robot Schematics Acquired . | . . . . Robots Built . | . . . . Matter . | . . . . Time . | . . . . Total Robot Build Rating . | . . . . Part Schematics Acquired 1 | . . 1 . Parts Built . | . . . . Matter . | . . . . Time . | . . . . Total Part Build Rating . | . . . . Parts Repaired 1 | . 1 . . Time 38 | . 38 . . Parts Recycled . | . . . . Recycled Matter . | . . . . Retrieved Matter . | . . . . Retrieved Components . | . . . . Parts Scanalyzed 1 | . . 1 . Part Schematics Acquired 1 | . . 1 . Parts Damaged . | . . . . Bothacking | -11 -10 -9 -9 ------------ Run | Scr Mat Mat Min Used RIF Installer . | . . . . Robots Hacked . | . . . . Non-combat . | . . . . Combat . | . . . . Robot Hacks Applied . | . . . . Relay Couplers Released . | . . . . Robots Rewired . | . . . . Allies Hacked . | . . . . Hacks Repelled . | . . . . Allies | -11 -10 -9 -9 -------- Run | Scr Mat Mat Min Total Allies . | . . . . Largest Group . | . . . . Highest-Rated Group . | . . . . Highest-Rated Ally . | . . . . Total Orders . | . . . . Ally Attacks . | . . . . Total Damage . | . . . . Kills . | . . . . Allies Corrupted . | . . . . Allies Melted . | . . . . Intel | -11 -10 -9 -9 ------- Run | Scr Mat Mat Min Robot Analysis Total . | . . . . Derelict Logs Recovered 1 | . . . 1 Drone Launches . | . . . . Drone Recoveries . | . . . . Exploration | -11 -10 -9 -9 ------------- Run | Scr Mat Mat Min Turns Passed 1239 | 54 429 436 320 Spaces Moved 927 | 55 341 369 162 Core 17 | 17 . . . Treads 190 | . . 28 162 Legs . | . . . . Wheels 720 | 38 341 341 . Hover . | . . . . Flight . | . . . . Fastest Speed 50 | 50 80 80 160 Average Speed 99 | 70 80 95 160 Slowest Speed 160 | 80 80 160 160 Overloaded Moves . | . . . . Propulsion Burnouts . | . . . . Robots Hopped . | . . . . Cave-ins Triggered . | . . . . Exploration Rate (%) 27 | 5 43 30 33 Regions Visited 3 Branch Regions 1 Pre-discovered Areas . | . . . . Known Exits Taken . | . . . . Unknown Exits Taken 3 | 1 1 1 . Scrap Searched 1 | . . . 1 Spaces Dug 2 | . . 1 1 Terrain Destroyed 5 | . . 4 1 Melee 1 | . . . 1 Projectile 4 | . . 4 . AOE . | . . . . Terrain Rammed . | . . . . Walls Destroyed . | . . . . Machines Disabled . | . . . . Actions | -11 -10 -9 -9 --------- Run | Scr Mat Mat Min Total 1136 | 67 463 413 193 Wait 85 | . 78 . 7 Move 924 | 54 340 368 162 Hop . | . . . . Pick Up 32 | 7 10 13 2 Fast Attach . | . . . . Attach 11 | 5 4 2 . Detach . | . . . . Swap 15 | . 5 10 . Drop 13 | . 7 4 2 Fire 36 | 1 19 16 . Melee 10 | . . . 10 Ram . | . . . . Kick . | . . . . Crush 10 | . . . 10 Escape Stasis . | . . . . Rewire . | . . . . Trap . | . . . . Miscellaneous . | . . . . Route ------- -11/Scrapyard -10/Materials -9/Materials -9/Mines History --------- Turn | Location | Event 2 | -11/Scrapyard | Met Revision 17 42 | -11/Scrapyard | Discovered new exit (range 8) 55 | -11/Scrapyard | Entered Materials 316 | -10/Materials | Build established: Mutant 349 | -10/Materials | Repaired Lgt. Nuclear Core 453 | -10/Materials | Discovered new exit (range 13) 484 | -10/Materials | Entered another Materials area 484 | -9/Materials | Evolved 2 slots: Utility x1, Weapon x1 908 | -9/Materials | Discovered new exit (range 8) 920 | -9/Materials | Entered Mines 1026 | -9/Mines | Learned Materials stockpile data 1037 | -9/Mines | YI-UF0 nonchalantly dropped a Grenade Launcher on the ground 1203 | -9/Mines | Assembled infested the area 1208 | -9/Mines | Assisted by a Guerilla fighting off Assembled 1240 | -9/Mines | Self-destructed Last Messages --------------- I've been tracking a group of Assembled to figure out where they're coming from, and they're closing on this area, come on!" 01213_ J3-NI8(h): "I'll hold them off! Go on ahead or try to find another way!" 01213_ as-41355 suffers critical hit. 01213_ as-41355 knocked back. 01213_ Great Maul follow-up attack on as-85167. 01214_ Med. Armor Plating destroyed. 01215_ HV Slug penetrates Wall. 01215_ J3-NI8(h) destroyed. 01216_ Great Maul severed. 01217_ Slammed into as-85167. 01226_ Lgt. Nuclear Core destroyed. 01226_ Lgt. Treads severed. 01227_ Slammed into as-85167. 01232_ Destroyed Asb. Hover Unit. 01232_ as-85167 system corrupted by crushing effect. 01233_ as-85167 system terminally corrupted. 01238_ Slammed into as-41355. 01239_ Imp. Treads severed. Map ----- +----------------------------------------------------+ | ######### ##??????# """ #? | | ## #??????# #? | | ## ### #??????# """ #? | | ## ######### #?## ######## """ #? | | ### ## ##???????# #??# """ #? | | #?###### #??????### #??# #? | | #??????## ##??????# #??## % #############? | | ????????####???????# #??## #????????????? | | ??????????????????## #### ##???????????? | | ?????????????????## % ##??????????? | | ????????????????## #??????????? | | ???????????????## #### #??????????? | | ????????????#### ##??## #??????????? | | ??????????### """ #????## ##??????????? | | ????????? """ ##????####???????????? | | ??????????## """ ##??????????????????? | | ???????????# #??????????????????? | | ???????????## ### = #??????????????????? | | ????????????# #??## %%%#??????????????????? | | ????????????# ????### %%%%#??????????????????? | | ????????????#???????# #%%##??????????????????? | | ????????????????????# ##/#???????????????????? | | ????????????????????# ?#!#???????????????????? | | ?????????????????#### ##%#???????????????????? | | ??????????????# aa#???????????????????? | | ?????????????????########@#???????????????????? | | ????????????????????????#a#???????????????????? | | ????????????????????????# #???????????????????? | | ????????????????????????# #???????????????????? | | ???????????????????????? #???????????????????? | | ???????????????????????? ???????????????????? | | ???????????????????????? ???????????????????? | | ????????????????????????= #???????????????????? | | ???????????????????????? ##???????????????????? | | ????????????????????????#?????????????????????? | | ??????????????????????????????????????????????? | | ??????????????????????????????????????????????? | | ??????????????????????????????????????????????? | | ??????????????????????????????????????????????? | | ??????????????????????????????????????????????? | | ??????????????????????????????????????????????? | | ??????????????????????????????????????????????? | | ??????????????????????????????????????????????? | | ??????????????????????????????????????????????? | | ??????????????????????????????????????????????? | | ??????????????????????????????????????????????? | | ??????????????????????????????????????????????? | | ??????????????????????????????????????????????? | | ??????????????????????????????????????????????? | | ??????????????????????????????????????????????? | +----------------------------------------------------+ Best States ------------- Heat Dissipation 28 Energy Generation 14 Energy Capacity 160 Matter Stores 300 Matter Capacity 300 Sight Range 16 Terrain Scan Density 10 Armor Coverage 225 Resistance: KI 20 Resistance: TH 20 Resistance: EX 20 Resistance: EM 20 Resistance: I 20 Resistance: S 20 Resistance: P 20 Core Shielding 20 Weapon Shielding 33 Evasion (%) 50 Recoil Reduction 2 Offensive Hacking 10 Item Schematics ----------------- Ion Engine | -9/Materials | Scanalyzed Robot Schematics ------------------ None Fabricated ------------ Nothing Alien Tech Used ----------------- None Achievements -------------- None Challenges ------------ None Game ------ Seed StructuralNeutronUnit Manual? 0 Play Time 00:17:02 Cumulative 3.0 hours Start 2021.05.17 @ 20:06:12 End 2021.05.17 @ 20:22:36 Sessions 1 Manual Loads 0 Difficulty Adventurer Special Mode None Game No. 5 Rogue 0 Adventurer 5 Explorer 0 Win Type - Total 0 Types 0/0/0/0/0/0/0/0/0 Lore% 1 Gallery% 10 Achievement% 9 Wizard Run 0 Options --------- ASCII 0 Keyboard 0 Movement Numpad Keybinds 0 Fullscreen 1 Font 18/SmallcapsGlow Map View 76x50 Tactical HUD 1 Map Filters NONE Filters NONE Steam 1 RUN: e807a3fb-9cb8-435a-b90f-b6b9a41503b3